Cogmind - Beta 13 @@@ ROGUE MODE // 2024.07.15 @ 17:01:54 Player: Sionnis Result: Destroyed by 8I-YCC(R) with Subdweller Beam Cannon Performance ------------- Evolutions (0) 0 Regions Visited (2) 400 Robots Destroyed (37) 185 Value Destroyed (1084) 1084 Prototype IDs (13) 260 Alien Tech Used (0) 0 Bonus (0) 0 TOTAL SCORE: 1929 Bonus ------- None Cogmind --------- Core Integrity 0/250 Matter 110/300 Energy 156/250 System Corruption 0% Temperature Cool (9) Movement Treading (480) Ox4 Location -10/Subcaves Parts ------- > --- POWER (1) -------- Ion Engine > --- PROPULSION (2) --- Light Treads > --- UTILITY (2) ------ Huge Storage Unit Makeshift Light Armor Plating > --- WEAPON (2) ------- Subdweller Machine Gun Subdweller Machine Gun > --- INVENTORY (25) --- Light Ion Engine Compact Wheel Compact Wheel Huge Storage Unit Medium Matter Pod (100) Structural Scanner Sensor Array Hardened Light Armor Plating Hardened Light Armor Plating Hardened Light Armor Plating High-powered Tractor Beam Power Bank Battle Rifle Heavy Battle Rifle Light Cannon Battle Cannon Slug Cannon Grenade Launcher Grenade Launcher Grenade Launcher Subdweller Shrapnel Launcher Multitool Peak State ------------ > --- POWER ------------ (None) > --- PROPULSION ------- Light Treads Light Treads > --- UTILITY ---------- Huge Storage Unit Makeshift Light Armor Plating > --- WEAPON ----------- Subdweller Machine Gun Slug Cannon > --- INVENTORY -------- Ion Engine Light Ion Engine Compact Wheel Compact Wheel Huge Storage Unit Medium Matter Pod Structural Scanner Sensor Array Hardened Light Armor Plating Hardened Light Armor Plating Hardened Light Armor Plating High-powered Tractor Beam Power Bank Battle Rifle Subdweller Machine Gun Heavy Battle Rifle Light Cannon Battle Cannon Grenade Launcher Grenade Launcher Grenade Launcher Subdweller Shrapnel Launcher Multitool [Rating: 17] Favorites ----------- Power Ion Engine Engine Ion Engine Propulsion Light Treads Treads Light Treads Utility Huge Storage Unit Device Structural Scanner Storage Huge Storage Unit Protection Hardened Light Armor Plating Weapon Subdweller Machine Gun Ballistic Gun Subdweller Machine Gun Ballistic Cannon Light Cannon Launcher Subdweller Shrapnel Launcher Build | -11 -10 -10 ------- Run | Yrd Mat Sub Slots Evolved . | . . . Power . | . . . Propulsion . | . . . Utility . | . . . Weapon . | . . . Parts Attached 42 | 6 16 20 Power 3 | 1 1 1 Engine 3 | 1 1 1 Core . | . . . Reactor . | . . . Propulsion 10 | 2 4 4 Treads 10 | 2 4 4 Leg . | . . . Wheel . | . . . Hover . | . . . Flight . | . . . Utility 12 | 1 7 4 Device 3 | . 2 1 Storage 3 | 1 2 . Processor . | . . . Hackware . | . . . Protection 6 | . 3 3 Artifact . | . . . Weapon 17 | 2 4 11 Energy Gun . | . . . Energy Cannon . | . . . Ballistic Gun 12 | 2 3 7 Ballistic Cannon 4 | . 1 3 Launcher 1 | . . 1 Special Weapon . | . . . Impact Weapon . | . . . Slashing Weapon . | . . . Piercing Weapon . | . . . Special Melee Weapon . | . . . Unidentified Prototypes . | . . . Parts Lost 10 | . . 10 Power 1 | . . 1 Propulsion 5 | . . 5 Utility 1 | . . 1 Weapon 3 | . . 3 Highest Loss Streak 3 | . . 3 To Critical Strikes . | . . . Average Slot Usage (%) 97 | . 99 96 Engine 11 | . 14 10 Treads 27 | . 28 27 Device 2 | . 5 . Storage 14 | . 14 14 Protection 11 | . 8 13 Ballistic Gun 24 | . 25 24 Ballistic Cannon 3 | . 2 3 Naked Turns . | . . . Heaviest Build 98 | 13 96 98 Greatest Support 40 | 40 40 40 Greatest Overweight (x) 2 | 1 2 2 Average Overweight (x) 1 | . 1 2 Largest Inventory Capacity 25 | 8 25 25 Average Capacity 24 | 7 23 25 Most Carried 25 | 3 25 25 Average Carried 19 | 1 13 24 Final Capacity 25 | 8 25 25 Final Carried 25 | 3 25 22 Class Distribution -------------------- 59% | Mutant 40% | Scavenger-Mutant Dominant Class ---------------- Mutant | -10/Materials Scavenger-Mutant | -10/Subcaves Resources | -11 -10 -10 ----------- Run | Yrd Mat Sub Matter Collected 1497 | 235 532 730 Remotely . | . . . Salvage Created 1088 | . 557 531 Parts 71 | . 42 29 Haulers Intercepted 2 | . 2 . Recyclers Shooed 4 | . 4 . Parts Field Recycled . | . . . Retrieved Matter . | . . . Parts Self-Destructed 10 | . . 10 Prevented . | . . . Kills | -11 -10 -10 ------- Run | Yrd Mat Sub Combat Hostiles Destroyed 30 | . 12 18 Guns 23 | . 11 12 Cannons 5 | . 1 4 AOE 2 | . . 2 Classes Destroyed 8 | . 6 2 Hauler 2 | . 2 . Mechanic 1 | . 1 . Operator 1 | . 1 . Watcher 3 | . 3 . Swarmer 6 | . 6 . Grunt 8 | . 6 2 Sentry 1 | . . 1 Subdweller 15 | . . 15 Best Kill Streak 3 | . 3 2 Combat Bots Only 3 | . 3 2 Max Kills in Single Turn 2 | . 2 1 Gunslinging 1 | . 1 . Exploded 1 | . . 1 Melee . | . . . Uniques/NPCs Destroyed . | . . . Combat | -11 -10 -10 -------- Run | Yrd Mat Sub Hostile Shots Fired 142 | . 38 104 Missed 40 | . 8 32 Damage Taken 2080 | . 291 1789 Core 254 | . 55 199 Absorbed by Shields . | . . . Core Remaining (%) 100 | 100 . . Volleys Fired 181 | . 75 106 Largest 2 | . 2 2 Hottest 88 | . 58 88 Shots Fired 329 | . 149 180 Gun 270 | . 144 126 Cannon 56 | . 5 51 Launcher 3 | . . 3 Special . | . . . Kinetic 329 | . 149 180 Thermal . | . . . Explosive . | . . . Electromagnetic . | . . . Robot Hit Streak 13 | . 7 13 Robot Miss Streak 5 | . 5 4 Penetration Max . | . . . Secondary Targets 1 | . 1 . Max Gunslinging Chain 1 | . 1 . Shots Hit Robots 172 | . 88 84 Core Hits 77 | . 43 34 Critical Kills 1 | . 1 . Critical Parts Destroyed 1 | . 1 . Critical Strikes 6 | . 2 4 Destroy 6 | . 2 4 Melee Attacks . | . . . Impact . | . . . Slashing . | . . . Piercing . | . . . Sneak Attacks . | . . . Combat Hostiles . | . . . Follow-up Attacks . | . . . Damage Inflicted 2905 | . 993 1912 Guns 2158 | . 920 1238 Cannons 548 | . 50 498 Explosions 176 | . . 176 Melee . | . . . Ramming 23 | . 23 . Kinetic 2882 | . 970 1912 Thermal . | . . . Explosive . | . . . Electromagnetic . | . . . Impact . | . . . Slashing . | . . . Piercing . | . . . Highest Corruption 2 | . 2 2 Average Corruption 1 | . 2 1 Corruption Purged 2 | . . 2 Corruption Blocked . | . . . Effects 50 | . 21 29 Message Errors 10 | . 1 9 Matter Fused 15 | . 9 6 Heat Flow Errors 6 | . 3 3 Energy Discharges 8 | . 3 5 Parts Rejected 1 | . 1 . Parts Fused 1 | . . 1 Data Loss (minor) 3 | . 3 . Data Loss (major) 3 | . . 3 Alerts 1 | . . 1 Weapon Failures 2 | . 1 1 Overload Shots . | . . . Overflow Damage . | . . . Projectiles . | . . . Explosions . | . . . Melee . | . . . Knockbacks 4 | . 2 2 Impact . | . . . Kinetic 4 | . 2 2 Secondary . | . . . Self-Inflicted Damage 26 | . . 26 Shots 1 | . . 1 Rammed 3 | . 3 . Targets Rammed 3 | . 3 . Kicked . | . . . Crushed . | . . . Highest Temperature 245 | . 245 178 Average Temperature 80 | . 79 83 Received Heat Transfer 339 | . 54 285 Siege Activations . | . . . Robots Corrupted . | . . . Combat Hostiles . | . . . Parts Fried . | . . . Impact Corruptions . | . . . Robots Melted . | . . . Combat Hostiles . | . . . Parts Melted . | . . . Heat Transferred . | . . . Parts Sabotaged . | . . . Parts Stolen . | . . . Parts Stripped . | . . . Power Chain Reactions . | . . . Alert | -11 -10 -10 ------- Run | Yrd Mat Sub Peak Influence 225 | . 225 . Initial . | . . . Average 65 | . 66 . Maximum Alert Level 1 | . 1 . Low Security (%) 99 | 100 99 . Level 1 . | . . . Level 2 . | . . . Level 3 . | . . . Level 4 . | . . . Level 5 . | . . . High Security . | . . . Max Security . | . . . Squads Dispatched 2 | . 2 . Investigation 1 | . 1 . Extermination . | . . . Reinforcement 1 | . 1 . Assault . | . . . Garrison . | . . . Intercept . | . . . Searches Triggered . | . . . Construction Impeded . | . . . Haulers Reinforced . | . . . Active Scanning Responses . | . . . Cargo Convoy Interrupts . | . . . Stealth | -11 -10 -10 --------- Run | Yrd Mat Sub Distress Signals . | . . . Communications Jammed . | . . . Distress Signals . | . . . Times Spotted 54 | . 34 20 Peak Tracking Total 3 | . 3 3 Tactical Retreats 3 | . 3 . Traps | -11 -10 -10 ------- Run | Yrd Mat Sub Traps Triggered 6 | . 3 3 Indirectly . | . . . Trap Hack Attempts . | . . . Triggered . | . . . Disarmed . | . . . Reprogrammed . | . . . Reused . | . . . Traps Extracted . | . . . Installed . | . . . Triggered . | . . . Machines | -11 -10 -10 ---------- Run | Yrd Mat Sub Machines Disabled 1 | . . 1 Max in Single Turn 1 | . . 1 Machines Repaired . | . . . Machines Dismantled . | . . . Machines Sabotaged . | . . . Overloaded Fab Kills . | . . . Hacking | -11 -10 -10 --------- Run | Yrd Mat Sub Machines Accessed 11 | . 9 2 Terminals 7 | . 7 . Fabricators . | . . . Repair Stations . | . . . Recycling Units 2 | . 2 . Scanalyzers . | . . . Garrison Access . | . . . Total Hacks 31 | . 21 10 Successful 21 | . 11 10 Failed 9 | . 9 . Catastrophic 2 | . 2 . Database Lockouts 1 | . 1 . Manual 10 | . 10 . Terminals 17 | . 17 . Fabricators . | . . . Repair Stations . | . . . Recycling Units 4 | . 4 . Scanalyzers . | . . . Garrison Access . | . . . Terminal Hacks 16 | . 6 10 Record 9 | . . 9 Robot Analysis 2 | . 2 . Prototype ID Bank 2 | . 2 . Recycling Unit Index 1 | . 1 . Hauler Manifests 1 | . 1 . Derelict Proto ID Bank 1 | . . 1 Fabricator Hacks . | . . . Repair Station Hacks . | . . . Recycling Unit Hacks 2 | . 2 . Retrieve Components 2 | . 2 . Scanalyzer . | . . . Garrison Access Hacks . | . . . Unauthorized Hacks 3 | . 3 . Terminals 3 | . 3 . Botnet 2 | . 2 . Operators 1 | . 1 . Fabricators . | . . . Repair Stations . | . . . Recycling Units . | . . . Scanalyzers . | . . . Garrison Access . | . . . Data Cores Recovered . | . . . Used . | . . . Hacking Detections 7 | . 7 . Full Trace Events 1 | . 1 . Feedback Events . | . . . Feedback Blocked . | . . . Robot Schematics Acquired . | . . . Robots Built . | . . . Authchips . | . . . Time . | . . . Total Robot Build Rating . | . . . Part Schematics Acquired . | . . . Parts Built . | . . . Authchips . | . . . Time . | . . . Total Part Build Rating . | . . . Parts Repaired . | . . . Time . | . . . Parts Recycled . | . . . Recycled Matter . | . . . Retrieved Matter . | . . . Retrieved Components 19 | . 19 . Parts Scanalyzed . | . . . Part Schematics Acquired . | . . . Parts Damaged . | . . . Bothacking | -11 -10 -10 ------------ Run | Yrd Mat Sub Used RIF Installer . | . . . Robots Hacked . | . . . Non-combat . | . . . Combat . | . . . Robot Hacks Applied . | . . . Relay Couplers Released . | . . . Fabnet Peak Effective % . | . . . Robots Rewired . | . . . Allies Hacked . | . . . Hacks Repelled . | . . . Allies | -11 -10 -10 -------- Run | Yrd Mat Sub Total Allies . | . . . Largest Group . | . . . Highest-Rated Group . | . . . Highest-Rated Ally . | . . . Total Orders . | . . . Ally Attacks . | . . . Total Damage . | . . . Kills . | . . . Allies Corrupted . | . . . Allies Melted . | . . . Intel | -11 -10 -10 ------- Run | Yrd Mat Sub Robot Analysis Total 2 | . 2 . Derelict Logs Recovered 1 | . . 1 Drone Launches . | . . . Drone Recoveries . | . . . Exploration | -11 -10 -10 ------------- Run | Yrd Mat Sub Turns Passed 7345 | 59 2736 4550 Spaces Moved 2106 | 34 787 1285 Core 7 | 7 . . Treads 2099 | 27 787 1285 Legs . | . . . Wheels . | . . . Hover . | . . . Flight . | . . . Fastest Speed 50 | 50 160 320 Average Speed 310 | 141 301 320 Slowest Speed 320 | 160 320 320 Overloaded Moves . | . . . Propulsion Burnouts . | . . . Robots Hopped . | . . . Cave-ins Triggered . | . . . Exploration Rate (%) 59 | 5 99 73 Regions Visited 2 Branch Regions 1 Pre-discovered Areas 1 | . . 1 Known Exits Taken . | . . . Unknown Exits Taken 2 | 1 1 . Scrap Searched 10 | . . 10 Spaces Dug . | . . . Terrain Destroyed 32 | . . 32 Melee . | . . . Projectile 3 | . . 3 AOE 29 | . . 29 Terrain Rammed . | . . . Walls Destroyed . | . . . Machines Disabled . | . . . Actions | -11 -10 -10 --------- Run | Yrd Mat Sub Total 2597 | 42 1017 1538 Wait 179 | . 75 104 Move 2104 | 33 786 1285 Hop . | . . . Pick Up 53 | 3 38 12 Fast Attach 16 | 6 7 3 Attach 9 | . . 9 Detach 2 | . 1 1 Swap 17 | . 9 8 Drop 33 | . 23 10 Fire 181 | . 75 106 Melee . | . . . Ram . | . . . Kick . | . . . Crush 3 | . 3 . Escape Stasis . | . . . Rewire . | . . . Trap . | . . . Miscellaneous . | . . . Route ------- -11/Scrapyard -10/Materials (discovered 5 exits: [*Mat x3] / [*Min] / *Sub) -10/Subcaves (discovered 1 exit: [*Mat]) History --------- Turn | Location | Event 20 | -11/Scrapyard | Discovered new exit (range 16) 60 | -11/Scrapyard | Entered Materials 309 | -10/Materials | Build established: Mutant 964 | -10/Materials | Discovered new exit (range 5) 1639 | -10/Materials | Discovered new exit (range 5) 2158 | -10/Materials | Central database locked down 2204 | -10/Materials | Build established: Scavenger-Mutant 2327 | -10/Materials | Discovered new exit (range 15) 2327 | -10/Materials | Discovered new exit (range 16) 2699 | -10/Materials | Build established: Mutant 2766 | -10/Materials | Discovered new exit (range 10) 2796 | -10/Materials | Entered Subcaves 3682 | -10/Subcaves | Build established: Scavenger-Mutant 3801 | -10/Subcaves | Core integrity fell below 50% 4006 | -10/Subcaves | Learned location of Storage (-7) 4032 | -10/Subcaves | Visited Clippyterm 4646 | -10/Subcaves | Visited 4L-MR0's lab 4720 | -10/Subcaves | Lost 3 parts (1n1u1w) 4769 | -10/Subcaves | Found Power Bank 5968 | -10/Subcaves | Shifting Twisted Machinery released Sub. Shrapnel Launcher 6015 | -10/Subcaves | Shifting Twisted Machinery released Battle Cannon 6030 | -10/Subcaves | Shifting Twisted Machinery released Multitool 6105 | -10/Subcaves | Build established: Mutant 6137 | -10/Subcaves | Discovered new exit (range 15) 6194 | -10/Subcaves | Core integrity fell below 20% 6224 | -10/Subcaves | Lost 3 parts (1p1n1w) 6336 | -10/Subcaves | Shifting Twisted Machinery released Flamer 6504 | -10/Subcaves | Shifting Twisted Machinery released Sub. Machine Gun 7346 | -10/Subcaves | Destroyed by 8I-YCC(R) with Subdweller Beam Cannon Last Messages --------------- Ion Engine destroyed. Lgt. Treads destroyed. Sub. Machine Gun shoots sparks and powers down. Sub. Machine Gun destroyed. LY-9NZ(R) destroyed. 3Q-EW7(R) destroyed. Acquired 38 matter. Acquired 58 matter. Slug penetrates Wall. VG-I8M(R) suffers critical hit (Destroy). VG-I8M(R) destroyed. Acquired Sub. Machine Gun. Flamer falls loose from the Twisted Machinery. 8Z-QOI(z): "She is not going to be happy we haven't found any suitable candidates yet." Sub. Machine Gun falls loose from the Twisted Machinery. Acquired Sub. Machine Gun. Dropped Broken Sub. Machine Gun. Lgt. Treads destroyed. Map ----- +----------------------------------------------------+ | #????????????????????????????????????????????????? | | ##???????????????????????????????????????????????? | | ####????????????????????????????????????????????? | | #????????????????????????????????????????????? | | ##????????????????????????????????????????????? | | #?????????????????????????????????????????????? | | #?????????????????????????????????????????????? | | ##?????????????????????????????????????????????? | | #??????????????????????????????????????????????? | | ##??????????????????????????#???????????????????? | | ##????????????????????# #??# #??????????????????? | | #????????????????????? ## ##?????????????????? | | #????????????????????? ####??????????????? | | #????????????????????? ##?????????????? | | #????????????????????? #?????????????? | | #?????????????????????# ####??????????? | | #?????????????????????# #??????????? | | #????????????????????## ???????????? | | #????????????????????# ????????????? | | #????????????????????? ?????????????? | | ##?????????????????????# ???????????????? | | #?????????????????????## ????????????????? | | ##????????????????????## ??????????????????? | | #???????????????????### #???????????????????? | | #???????????????????# #?##RR##???????????????????? | | #????????????????#### #?#@ #???????????????????? | | ?????????????????# ### ##???????????????????? | | ?????????????????# #???????????????????? | | ?????????????????# ###???????????????????? | | ?????????????????# #?????????????????????? | | ?????????????????## ##?????????????????????? | | ??????????????????#### ###??????????????????????? | | ????????????????????## #???????????????????????? | | ????????????????????# ##???????????????????????? | | ????????????????????## #????????????????????????? | | ????????????????????# #????????????????????????? | | ????????###?????????## ##?##????????????????????? | | ????##### #??????????# ## ##???????????????????? | | ???## ## ########?### #???????????????????? | | ??## # # # ### ## #???????????????????? | | ??# # #####??????????????###??? | | ??# #?????????????????## #??? | | ??## ## ### ##?????????????????# #??? | | ???##?# ####### ##??????????????????# #??? | | ?????## ###### #??????????????????# ##?? | | #????# ## #??????????????????## ##? | | #????# # ###??????????????????# #? | | #????# ! ### #??????????????????# #? | | #????# ##?## ##??????????????????# ## | | #???## ###### ##???????????????????## | +----------------------------------------------------+ Best States ------------- Heat Dissipation 25 Energy Generation 10 Energy Capacity 250 Matter Stores 300 Matter Capacity 300 Sight Range 16 Terrain Scan Density 10 Armor Coverage 150 Utility Shielding 33 Evasion (%) 40 Recoil Reduction 2 Item Schematics ----------------- None Robot Schematics ------------------ None Fabricated ------------ Nothing Alien Tech Used ----------------- None Achievements -------------- None Challenges ------------ None Game ------ Seed MediumBladeLaser Manual? 0 Play Time 00:32:05 Cumulative 427.2 hours Start 2024.07.15 @ 16:12:51 End 2024.07.15 @ 17:01:54 Sessions 3 Manual Loads 0 Difficulty Rogue Special Mode None Game No. 234 Rogue 234 Adventurer 0 Explorer 0 Win Type - Total 29 Types 18/2/2/3/1/1/1/1/0 Lore% 81 Gallery% 91 Achievement% 94 Wizard Run 0 Options --------- Layout 1 ASCII 0 Keyboard 0 Movement Numpad Keybinds 0 Fullscreen 1 Font 24/Smallcaps Map View 50x35 Zoom Use 0% Tactical HUD 1 Map Filters NONE Filters NONE Steam 1 RUN: 83a1273c-386a-44d9-842e-4b5fde443c07